{"text_format":"1","workbook":"xlsx","n_sheets":6,"sheets":["أساسيات","أسماء الطلاب","تفقد","الإحصائية","الكادر","كادر احتياطي"],"not_rendered":{"charts":0,"images":0,"macros":1,"external_links":0,"defined_names":1,"comments":0,"pivot_tables":0},"unopened":[],"bounds":{"document_bytes":16777216,"sheet_cells":100000,"rows_first":2000,"rows_last":500,"rows_between":2000,"halvings":0,"cell_chars":16384,"cell_head_chars":4096},"cells_cut":0,"cells_raw":0,"read":"whole","date_system":"1900"}

{"sheet":"أساسيات","index":0,"n_rows":12,"n_cols":4,"rows_kept":12,"cut":false,"hidden":false,"merged":[]}
["الرمز","الصف","الشعبة","المشرف"]
["الأول","الأول","الأولى","منى جغل"]
["الثاني1","الثاني","الأولى","هند"]
["الثاني2","الثاني","الثانية","ب"]
["الثالث1","الثالث","الأولى","ج"]
["الثالث2","الثالث","الثانية","ف"]
["الرابع","الرابع","الأولى","ى"]
["الخامس","الخامس","الأولى","خ"]
["السادس","السادس","الأولى","ك"]
["السابع","السابع","الأولى","ب"]
["الثامن","الثامن","الأولى","ن"]
["التاسع","التاسع","الأولى","ي"]

{"sheet":"أسماء الطلاب","index":1,"n_rows":300,"n_cols":19,"rows_kept":300,"cut":false,"hidden":false,"merged":[]}
["سجل","الرقم","الاسم والنسبة","الاسم","النسبة","الأب","الأم","سكن سابق","السكن","سابق","الصف","مكان","تاريخ التولد","يوم","شهر","عام","رقم التواصل","النوع","ملاحظات"]
[231,null,"رهام حدادة","رهام","حدادة","هلال",null,null,null,"التاسع",null,null,"1905-06-24",24,6,2002,null,"أنثى"]
[152,16,"محمد باروتجي","محمد","باروتجي",null,null,null,null,"الثاني","الثالث2",null,"1905-07-02",2,7,2010,null,"ذكر"]
[163,null,"طيبة تيت","طيبة","تيت",null,null,null,null,"الأول",null,null,"1905-07-02",2,7,2010,null,"أنثى"]
[170,null,"محمد زراع","محمد","زراع",null,"رهف",null,null,"الأول","نقل",null,"1905-07-04",4,7,2012,null,"ذكر"]
[211,null,"أحمد شقروق","أحمد","شقروق",null,null,null,null,"التاسع",null,null,"1997-01-03",3,1,1997,null,"ذكر"]
[223,null,"هبة الله صالح","هبة الله","صالح",null,null,null,null,"التاسع",null,null,"1998-01-29",29,1,1998,null,"أنثى"]
[225,null,"آلاء زيدان","آلاء","زيدان",null,null,null,null,"التاسع",null,null,"1999-01-08",8,1,1999,null,"أنثى"]
[126,null,"أمل قافو","أمل","قافو","عبد القادر","كميلة","المشهد",null,"التاسع",null,"حلب","2000-01-19",19,1,2000,null,"أنثى"]
[222,null,"هبة الله صباغ","هبة الله","صباغ",null,null,null,null,"التاسع",null,null,"2001-01-01",1,1,2001,null,"أنثى"]
[125,null,"براءة عقاد","براءة","عقاد","مصطفى","دنيا","الفردوس",null,"التاسع",null,"حلب","2001-01-15",15,1,2001,null,"أنثى"]
[232,null,"فاطمة صباغ","فاطمة","صباغ",null,null,null,null,"التاسع",null,null,"2001-06-23",23,6,2001,null,"أنثى"]
[221,null,"شهد خياط نقو","شهد","خياط نقو","رضوان",null,null,null,"التاسع",null,null,"2002-01-12",12,1,2002,null,"أنثى"]
[197,null,"آية قصير","آية","قصير",null,null,null,null,"السادس",null,null,"2002-01-21",21,1,2002,null,"أنثى"]
[131,null,"أحمد ريحاوي","أحمد","ريحاوي","فائز","فادية",null,"النهضة","الخامس",null,null,"2002-03-22",22,3,2002,null,"ذكر"]
[1,null,"إبراهيم مدلل","إبراهيم","مدلل","حافظ","رانية","بستان القصر",null,"التاسع",null,"حلب","2003-01-11",11,1,2004,null,"ذكر"]
[120,null,"إسراء خاروف","إسراء","خاروف","محمد","امينة","الكلاسة",null,"السابع",null,"حلب","2003-01-28",28,1,2003,null,"أنثى"]
[124,null,"ريم مشاعل","ريم","مشاعل","أحمد","نور الهدى","الأنصاري",null,"الثامن",null,"حلب","2003-01-30",30,1,2003,null,"أنثى"]
[2,null,"إبراهيم بابللي","إبراهيم","بابللي","محي الدين","نوره","المشهد",null,"السادس",null,"حلب","2003-03-02",2,3,3,null,"ذكر"]
[116,4,"دانية عقاد","دانية","عقاد","مازن","أمل","الفردوس","بدلها","السادس","الثامن",null,"2003-06-29",29,6,2003,955561771,"أنثى"]
[212,null,"فواز الدبيس","فواز","الدبيس",null,null,null,null,"التاسع",null,null,"2003-09-15",15,9,2003,null,"ذكر"]
[216,null,"محمد القاسم","محمد","القاسم",null,null,null,null,"التاسع",null,null,"2003-10-05",5,10,2003,null,"ذكر"]
[177,null,"آمنة السفان","آمنة","السفان","مهدي","فاطمة",null,"الإيمان","الثالث",null,"اللطامنة","2004-01-01",1,1,2004,null,"أنثى"]
[206,null,"أمينة بابللي","أمينة","بابللي",null,null,null,null,"السابع",null,null,"2004-01-01",1,1,2004,null,"أنثى"]
[209,null,"محمد نور طباخ","محمد نور","طباخ",null,null,null,null,"التاسع",null,null,"2004-01-01",1,1,2004,null,"ذكر"]
[215,null,"عادل خطيب","عادل","خطيب",null,null,null,null,"التاسع",null,null,"2004-01-10",10,1,2004,null,"ذكر"]
[210,null,"محمد سندة","محمد","سندة",null,null,null,null,"التاسع",null,null,"2004-01-12",12,1,2004,null,"ذكر"]
[127,1,"محمود قافو","محمود","قافو","عبد القادر","كميلة",null,"بدلها","الرابع",null,null,"2004-01-14",14,4,2004,956920193,"ذكر"]
[null,1,"اسراء حارس","إسراء","حارس","طالب","إيمان",null,"بدلها",null,"السادس",null,"2004-01-16",16,1,2004,943922183,"أنثى"]
[123,null,"جودي الموسى","جودي","الموسى","عادل","حسناء","الكلاسة",null,"الثامن",null,"حلب","2004-03-15",15,3,2004,null,"أنثى"]
[121,null,"بيان صالح","بيان","صالح","أحمد","فاطمة","المشهد",null,"الثامن",null,"حلب","2004-03-31",31,3,2004,null,"أنثى"]
[122,null,"ريان صالح","ريان","صالح","أحمد","فاطمة","المشهد",null,"الثامن",null,"حلب","2004-03-31",31,3,2004,null,"أنثى"]
[111,5,"روان أول","روان","أول","محمد هشام","غيثاء","الكلاسة","بدلها","السادس","الثامن",null,"2005-01-01",1,1,2005,954397871,"أنثى"]
[118,null,"سحر حجازي","سحر","حجازي","مصطفى","شذى","الكلاسة",null,"السابع",null,"حلب","2005-01-01",1,1,2005,null,"أنثى"]
[115,null,"حلا عقاد","حلا","عقاد","مصطفى","دنيا","الفردوس",null,"السادس",null,"حلب","2005-01-02",2,1,2005,null,"أنثى"]
[129,null,"إبراهيم سباط","إبراهيم","سباط","محمد","نادرة",null,"المخيم","الخامس",null,null,"2005-01-10",10,1,2005,null,"ذكر"]
[200,10,"وئام أوسو","وئام","أوسو","بلال","وفاء",null,"بدلها","السادس","السابع",null,"2005-01-12",12,1,2005,963957423,"أنثى"]
[117,7,"شهد حردان","شهد","حردان","غسان","هيفاء",null,"بدلها",null,"الثامن",null,"2005-01-23",23,1,2005,960968267,"أنثى"]
[119,null,"سدرة المنتهى جزماتي","سدرة المنتهى","جزماتي","صالح","سحر","المشهد",null,"السابع",null,"حلب","2005-01-27",27,1,2005,null,"أنثى"]
[114,3,"جلنار مراد","جلنار","مراد","أحمد","إبتسام",null,"بدلها","السادس","الثامن",null,"2005-02-22",22,2,2005,959707649,"أنثى"]
[null,null,"أحمد الحسن","أحمد","الحسن","حمود","فوزة","حمص","النور","الخامس",null,"حمص","2005-03-01",1,3,2005,null,"ذكر"]
[72,null,"محمد مدلل","محمد","مدلل","ماهر","فاطمة","بستان القصر",null,"الخامس",null,"حلب","2005-04-17",17,4,2005,null,"ذكر"]
[null,9,"مصطفى عفش","مصطفى","عفش","إبراهيم","أسماء",null,"النهضة",null,"السابع",null,"2005-05-06","6",5,2005,null,"ذكر"]
[113,1,"آية مراد","آية","مراد","أحمد","فاطمة",null,"بدلها","السادس","الثامن",null,"2005-05-09",9,5,2005,null,"أنثى"]
[91,null,"مصطفى شريمو","مصطفى","شريمو","محمد ديب","سامية","السكري",null,"الثاني",null,"حلب","2005-05-20",20,5,2005,null,"ذكر"]
[109,20,"صفاء قمقم","صفاء","قمقم","جمال","فاطمة","الكلاسة","بدلها",null,"بطل",null,"2005-07-21",21,7,2005,947203679,"أنثى"]
[30,7,"حسن بساطة","حسن","بساطة","مصطفى","هدى","السكري","بدلها","الرابع","السادس",null,"2005-12-18",18,12,2005,968091005,"ذكر"]
[8,null,"أحمد قصير","أحمد","قصير","حسن","صباح","الكلاسة",null,"الثاني",null,"حلب","2006-01-01",1,1,2006,null,"ذكر"]
[35,8,"حمزة خاروف","حمزة","خاروف","ماهر","بشرى","المغاير","بدلها","الرابع","السادس",null,"2006-01-01",1,1,2006,963962282,"ذكر"]
[53,12,"عبد الله مدلل","عبد الله","مدلل","محمود","سميرة","بستان القصر","بدلها","الثاني","الخامس",null,"2006-01-01",1,1,2006,956570798,"ذكر"]
[74,16,"محمد نجاة عقاد","محمد نجاة","عقاد","مازن","أمل","الفردوس","بدلها","الرابع","السادس",null,"2006-01-01",1,1,2006,955561771,"ذكر"]
[198,2,"بسمة خانطوماني","بسمة","خانطوماني",null,null,null,null,"السابع","الثامن",null,"2006-01-01",1,1,2006,null,"أنثى"]
[205,13,"يوسف خطيب","يوسف","خطيب","محمد","مبنية",null,"النهضة",null,"السابع",null,"2006-01-01",1,1,2006,945267228,"ذكر"]
["ج",13,"عبد الله السعيد","عبد الله","السعيد","سعيد","دلال",null,null,null,"الرابع","حمص","2006-01-01","1",1,2006,null,"ذكر"]
[null,8,"محمد نصر الدين زيدان","محمد نصر الدين","زيدان","أحمد","درية",null,"بدلها",null,"السابع",null,"2006-01-01",1,1,2006,null,"ذكر"]
[110,3,"حلا جسري","حلا","جسري","محمد","وفاء","الزبدية",null,"الخامس","السابع","حلب","2006-01-16",16,1,2006,null,"أنثى"]
[145,18,"غيث طباخ","غيث","طباخ","إبراهيم","رباح",null,"بدلها",null,"الثالث1",null,"2006-01-16",16,1,2006,null,"ذكر"]
[201,12,"يامن طباخ","يامن","طباخ","إبراهيم","رباح",null,"بدلها","السادس","السابع",null,"2006-01-16",16,1,2006,null,"ذكر"]
[140,15,"محمد نور حميدي","محمد نور","حميدي","عبد الحميد","فطوم",null,"بدلها","الثالث","الخامس",null,"2006-01-20",20,1,2006,null,"ذكر"]
[112,null,"دانية نجار","دانية","نجار","عبد الخالق","صفاء","القاطرجي",null,"السادس",null,"حلب","2006-03-01",1,3,2006,null,"أنثى"]
[106,2,"تسنيم الموسى","تسنيم","الموسى","عادل","حسناء",null,"بدلها","الخامس","السابع",null,"2006-03-25",25,3,2006,948871661,"أنثى"]
[105,15,"مايا مشاعل","مايا","مشاعل","أحمد","نور الهدى","الأنصاري",null,"الرابع","السادس","حلب","2006-04-17",null,null,2006,null,"أنثى"]
[130,null,"نجيب سباط","نجيب","سباط","محمد","نادرة",null,"المخيم","الخامس",null,null,"2006-06-07",7,6,2006,null,"ذكر"]
[52,11,"عبد الله المصري","عبد الله","المصري","زكريا","دلال",null,"بدلها","الثالث","الخامس",null,"2007-01-01",1,1,2007,945107091,"ذكر"]
[null,21,"ولاء المحمد","ولاء","المحمد","محمود","هدى",null,"النايف",null,"الثاني2",null,"2007-01-01",1,1,2007,null,"أنثى"]
[43,10,"زكريا دروبي","زكريا","دروبي","عبد القادر","منتهى","الأنصاري","بدلها","الرابع","السادس",null,"2007-01-03",3,1,2007,951526993,"ذكر"]
[15,4,"آمنة ملحم","آمنة","ملحم","محمد","نهى","كرم النزهة","بدلها","الرابع","السادس",null,"2007-01-07",7,1,2007,null,"أنثى"]
[45,11,"سلمى بساطة","سلمى","بساطة","محمد","رهف","السكري","بدلها","الرابع","السادس",null,"2007-01-07",7,1,2007,943962712,"أنثى"]
[203,4,"زهراء خطيب","زهراء","خطيب","محمد","مبنية",null,"النهضة",null,"السابع",null,"2007-01-10",10,1,2007,945267448,"أنثى"]
[108,4,"فاطمة أحمد","فاطمة","أحمد","خالد","سامية","المشهد","بدلها",null,"نقل",null,"2007-01-12",12,1,2007,949221635,"أنثى"]
[23,5,"تسنيم ميمة","تسنيم","ميمة","أحمد","سوسن","الكلاسة",null,"الثاني","الثالث1","حلب","2007-01-14",14,1,2007,null,"أنثى","تسرب"]
[93,18,"ناديا بركات","ناديا","بركات","محمد أسامة","راضية","الكلاسة","بدلها","الثالث","الخامس",null,"2007-01-26",26,1,2007,967285973,"أنثى"]
[62,15,"ماهر حلاق","ماهر","حلاق","يوسف","درية","المشهد","بدلها",null,"الرابع",null,"2007-01-29",29,1,2007,941186618,"ذكر"]
[84,18,"محمد حلاق","محمد","حلاق","يوسف","درية","المشهد","بدلها","الثاني","الرابع",null,"2007-01-29",29,1,2007,941186618,"ذكر"]
[17,3,"بتول حدادة","بتول","حدادة","محمد","روعة","الأنصاري","بدلها","الثالث","الخامس",null,"2007-01-31",31,1,2007,null,"أنثى"]
[139,22,"وسيم عقاد","وسيم","عقاد","مازن","أمل",null,"بدلها","الثالث","الرابع",null,"2007-02-10",10,2,2007,955561771,"ذكر"]
[146,19,"محمد خير ستر","محمد خير","ستر","أحمد","ناهد",null,"بدلها",null,"الرابع",null,"2007-05-05",5,5,2007,947045195,"ذكر"]
[65,7,"محمد مراد","محمد","مراد","أحمد","فاطمة",null,"بدلها",null,"السابع",null,"2007-06-01",1,6,2007,null,"ذكر"]
[null,null,"عبد الله شله","عبد الله","شله","محمد","هدى",null,"النهضة","السادس",null,"حرستا","2007-07-23",23,7,2007,952344361,"ذكر"]
[107,11,"ياسمين مراد","ياسمين","مراد","أحمد","إبتسام",null,"بدلها","الخامس","السابع",null,"2007-09-22",22,9,2007,959707649,"أنثى"]
[10,null,"أحمد خاروف","أحمد","خاروف","ماهر","بشرى","المغاير",null,"الرابع",null,"حلب","2008-01-01",1,1,2008,null,"ذكر"]
[12,3,"أماني خاروف","أماني","خاروف","أحمد","مها","الكلاسة","بدلها","الرابع","السادس",null,"2008-01-01",1,1,2008,968934039,"أنثى"]
[34,7,"حمزة مدلل","حمزة","مدلل","عمار","فاطمة حمامي","المشهد",null,"الأول","الثالث2","حلب","2008-01-01",1,1,2008,null,"ذكر","إعاقة حركية"]
[38,6,"رضوان خياط نقو","رضوان","خياط نقو","أسامة","ميرفت","المشهد",null,"الثالث","الخامس","حلب","2008-01-01",1,1,2008,null,"ذكر"]
[54,13,"عبد الله حجازي","عبد الله","حجازي","مصطفى","شذى","بستان القصر",null,"الرابع","السادس","حلب","2008-01-01",1,1,2008,null,"ذكر"]
[66,17,"محمد بكور","محمد","بكور","أحمد","حنان","السكري","بدلها","الثاني","الرابع",null,"2008-01-01",1,1,2008,null,"ذكر"]
[73,null,"محمد مزكتلي","محمد","مزكتلي","مصطفى","ياسمين","المشهد",null,"الثالث",null,"حلب","2008-01-01",1,1,2008,null,"ذكر"]
[101,10,"ظلال الإيمان صباغ","ظلال الإيمان","صباغ","عبد الله","ريما","الصالحين","بدلها",null,"الخامس",null,"2008-01-01",1,1,2008,969165683,"أنثى"]
[133,8,"سمى العبسي","سمى","العبسي","مصطفى","فاطمة",null,"بدلها",null,"الخامس",null,"2008-01-01",1,1,2008,null,"أنثى"]
[151,3,"أحمد رمضان","أحمد","رمضان","محمود","غصون",null,"بدلها","الثاني","الرابع",null,"2008-01-01",1,1,2008,null,"ذكر","الأب مفقود"]
[null,2,"أحمد نور خاروف","أحمد نور","خاروف","مروان","سلوى",null,"بدلها",null,"السادس",null,"2008-01-01",1,1,2008,954279827,"ذكر"]
[149,10,"روها خوندة","روها","خوندة","محمد","هدى",null,"بدلها","الثاني","الرابع",null,"2008-01-02",2,1,2008,945392708,"أنثى","الأب مفقود"]
[null,null,"محمد عفش","محمد","عفش","إبراهيم","أسماء",null,"النهضة","الخامس",null,null,"2008-01-05",5,1,2008,null,"ذكر"]
[141,20,"يحيى حناوي","يحيى","حناوي","زكريا","نورا",null,"بدلها",null,"الثاني1",null,"2008-01-10",10,1,2008,956522749,"ذكر"]
["ج",9,"رغد السعيد","رغد","السعيد","سعيد","دلال",null,null,null,"الثالث2","حمص","2008-01-13","13",1,2008,null,"أنثى"]
[13,2,"أمل ريحاوي","أمل","ريحاوي","محمد","نور","السكري",null,"الثالث","الخامس","حلب","2008-05-05",5,5,2008,null,"أنثى"]
[85,16,"محمود بساطة","محمود","بساطة","محمد","رهف","السكري","بدلها","الثالث","الخامس",null,"2008-05-08",8,5,2008,943962712,"ذكر"]
[6,1,"إيلاف أول","إيلاف","أول","محمد هشام","غيثاء","الكلاسة","بدلها","الرابع","الخامس",null,"2008-05-18",18,5,2008,954397871,"أنثى"]
[75,13,"محمد أول","محمد","أول","محمد هشام","غيثاء","الكلاسة","بدلها","الثالث","الخامس",null,"2008-05-18",18,5,2008,954397871,"ذكر","الأب مفقود"]
[172,null,"يوسف شريمو","يوسف","شريمو",null,null,null,null,"الأول",null,null,"2008-06-04",4,6,2008,null,"ذكر"]
[103,5,"خديجة مراد","خديجة","مراد","أحمد","إبتسام",null,"بدلها",null,"الخامس",null,"2008-07-23",23,7,2008,959707649,"أنثى"]
[4,2,"إيلاف المصري","إيلاف","المصري","زكريا","دلال","بستان القصر","بدلها","الثاني","الثالث1",null,"2009-01-01",1,1,2009,945107091,"أنثى","الأب مفقود"]
[9,null,"أحمد زبير صباغ","أحمد زبير","صباغ","إسماعيل","لوما","الكلاسة",null,"الثالث",null,"حلب","2009-01-01",1,1,2009,null,"ذكر"]
[18,5,"براءة خاروف","براءة","خاروف","أحمد","مها","الكلاسة","بدلها","الرابع","السادس",null,"2009-01-01",1,1,2009,968934039,"أنثى"]
[37,10,"راما العموري","راما","العموري","أحمد","أسماء",null,null,"الأول","الثالث1","تادف","2009-01-01",1,1,2009,null,"أنثى"]
[40,9,"رغد حدادة","رغد","حدادة","زكريا","بيان","الأنصاري","بدلها","الثاني","الرابع",null,"2009-01-01",1,1,2009,966802961,"أنثى"]
[41,10,"روان ديري","روان","ديري","عدنان","ضحى","بستان القصر","بدلها","الأول","الثالث2","حلب","2009-01-01",1,1,2009,null,"أنثى"]
[69,14,"محمد ملحم","محمد","ملحم","حسين","أميرة","الكلاسة","بدلها","الثالث","الخامس",null,"2009-01-01",1,1,2009,957225845,"ذكر"]
[90,20,"مصطفى خطاب","مصطفى","خطاب","حسين","سامية",null,"بدلها","الثاني","الثالث2",null,"2009-01-01",1,1,2009,null,"ذكر","راسب"]
[155,12,"سارة السيد","سارة","السيد","خالد","نادية",null,null,"الثاني","الثالث1",null,"2009-01-01",1,1,2009,944084414,"أنثى"]
[195,1,"إبراهيم شوبك","إبراهيم","شوبك",null,null,null,null,null,"الثاني1",null,"2009-01-01",1,1,2009,null,"ذكر","تخلف عقلي"]
[null,14,"قتيبة الطالب","قتيبة","الطالب","طلال","فهيمة",null,null,null,"الثاني2","تل دادين","2009-01-01","1",1,2009,null,"ذكر"]
[102,7,"سدرة المنتهى صباغ","سدرة المنتهى","صباغ","عبد الله","ريما","الصالحين","بدلها",null,"الخامس",null,"2009-01-02",2,1,2009,969165683,"أنثى"]
[14,4,"أيمن ملحم","أيمن","ملحم","محمد","نهى","الكلاسة","بدلها","الثالث","الرابع",null,"2009-01-03",3,1,2009,null,"ذكر","راسب"]
[47,9,"صالح قمقم","صالح","قمقم","محمد وليد","حسناء","الكلاسة","بدلها",null,"الخامس",null,"2009-01-03",3,1,2009,null,"ذكر"]
[59,14,"فاطمة بكاري","فاطمة","بكاري","أحمد","غزلان",null,"بدلها",null,"الثالث2",null,"2009-01-05",5,1,2009,949024931,"أنثى"]
[77,16,"محمد براء حجازي","محمد براء","حجازي","مصطفى","خنساء",null,"بدلها",null,"الرابع",null,"2009-01-05",5,1,2009,947670211,"ذكر"]
["ج",8,"حسان غراب","حسان","غراب","أحمد","فاطمة",null,"النهضة",null,"الرابع",null,"2009-01-05","5",1,2009,null,"ذكر"]
[null,5,"حليمة المحمد","حليمة","المحمد","محمود","هدى",null,"النايف",null,"الأول",null,"2009-01-05","5",1,2009,null,"أنثى"]
[88,16,"مروان بركات","مروان","بركات","محمد أسامة","راضية","السكري","بدلها","الأول","الثاني2",null,"2009-01-10",10,1,2009,967285973,"ذكر"]
[21,5,"بيان مدلل","بيان","مدلل","محمود","سميرة","بستان القصر","بدلها","الثاني","الرابع",null,"2009-01-13",13,1,2009,956570798,"أنثى"]
[null,15,"قمر حردان","قمر","حردان","أحمد","سماح",null,"بدلها",null,"الثاني2",null,"2009-01-13","13",1,2009,null,"أنثى"]
[44,11,"زين الدين طالب","زين الدين","طالب","محمد فخر الدين","فاطمة",null,"بدلها",null,"الرابع",null,"2009-01-17",17,1,2009,96731159,"ذكر"]
[104,6,"وفاء أحمد","وفاء","أحمد","خالد","سامية","المشهد","بدلها","الثالث","نقل",null,"2009-01-18",18,1,2009,949221635,"أنثى"]
["ج",2,"أحمد خاروف","أحمد","خاروف","محمد","رهف",null,"بدلها",null,"الثالث2",null,"2009-01-20","20",1,2009,null,"ذكر"]
[132,null,"آية الدبيس","آية","الدبيس",null,null,null,null,"الرابع",null,null,"2009-01-25",25,1,2009,null,"أنثى"]
[159,6,"راوية ستر","راوية","ستر","أحمد","ناهد",null,"بدلها","الأول","الثاني2",null,"2009-01-25",25,1,2009,947045195,"أنثى"]
[80,null,"محمد شريمو","محمد","شريمو","علاء الدين","ثريا","السكري",null,"الثاني",null,"حلب","2009-01-29",29,1,2009,null,"ذكر"]
[78,17,"محمد حلاق","محمد","حلاق","حسين","شذى","الفردوس","بدلها","الأول","الثالث2",null,"2009-04-01",1,4,2009,null,"ذكر"]
["ج",4,"أحمد مصطفى","أحمد","مصطفى","عبد الحميد","ناهد",null,null,null,"الثالث2",null,"2009-05-01","1",5,2009,null,"ذكر"]
[null,20,"محمد الأحمد","محمد","الأحمد","جاسم","جازية",null,"النور",null,"الثالث1",null,"2009-05-10",10,5,2009,null,"ذكر"]
[142,3,"أحمد دواليبي","أحمد","دواليبي","محمود",null,null,null,"الثاني","الثالث2",null,"2009-05-15",15,5,2009,null,"ذكر"]
[143,14,"فاطمة دواليبي","فاطمة","دواليبي","محمود",null,null,null,"الثاني","الرابع",null,"2009-05-15",15,5,2009,null,"أنثى"]
[82,20,"محمد مهدي عقاد","محمد مهدي","عقاد",null,"دنيا","الفردوس",null,null,"الرابع","حلب","2009-05-18",18,5,2009,null,"ذكر"]
[33,8,"حمزة بكور","حمزة","بكور","أحمد","حنان",null,"بدلها","الأول","الثالث1",null,"2009-06-09",9,6,2009,null,"ذكر"]
[48,12,"عبد الرحمن مراد","عبد الرحمن","مراد","رشيد","كوكب",null,"بدلها",null,"الرابع",null,"2009-07-09",9,7,2009,962035197,"ذكر"]
[76,18,"محمد مشاعل","محمد","مشاعل","أحمد","نورا","الأنصاري","بدلها","الأول","الثالث2",null,"2009-08-02",2,8,2009,954245170,"ذكر"]
[154,19,"كميلة قافو","كميلة","قافو","حسام","آية",null,"بدلها",null,"الثالث1",null,"2009-08-04",4,8,2009,944757668,"أنثى"]
[20,5,"بيان بكاري","بيان","بكاري","أحمد","غزلان","الفردوس","بدلها","الأول","الثالث2",null,"2009-09-10",10,9,2009,949024931,"أنثى"]
[5,1,"إيلاف الموسى","إيلاف","الموسى","عادل","حسناء","بستان القصر","بدلها","الثاني","الرابع",null,"2010-01-01",1,1,2010,948871661,"أنثى","يتيمة"]
[29,null,"حسن نجار","حسن","نجار","عبد الخالق","صفاء","القاطرجي",null,"الأول",null,"حلب","2010-01-01",1,1,2010,null,"ذكر"]
[57,12,"عمر ميمة","عمر","ميمة","محمد","زينب","المشهد",null,null,"الثاني1","حلب","2010-01-01",1,1,2010,null,"ذكر"]
[64,16,"محمد عموري","محمد","عموري","أحمد","أسماء",null,null,"الأول","الثاني1","حلب","2010-01-01",1,1,2010,null,"ذكر"]
[79,null,"محمد شريمو","محمد","شريمو","صالح",null,"السكري",null,"الأول",null,"حلب","2010-01-01",1,1,2010,null,"ذكر"]
[87,19,"مخلصة حمشو","مخلصة","حمشو","بسام","آسيا","الكلاسة","بدلها","الأول","الثالث2",null,"2010-01-01",1,1,2010,945392462,"أنثى"]
[144,1,"إيناس رمضان","إيناس","رمضان","محمود","غصون",null,"بدلها","الثاني","الثالث2",null,"2010-01-01",1,1,2010,null,"أنثى","الأب مفقود"]
[148,13,"عمر حميدي","عمر","حميدي","عبد الحميد","فطوم",null,"بدلها","الثاني","الثالث2",null,"2010-01-01",1,1,2010,null,"ذكر"]
[153,14,"شيماء مرقو","شيماء","مرقو","عبد الجليل","رامية",null,"بدلها","الثاني","الثالث1",null,"2010-01-01",1,1,2010,945573414,"أنثى"]
[156,16,"علا مقرش","علا","مقرش","شادي","نورا",null,"بدلها","الثاني","الثالث1",null,"2010-01-01",1,1,2010,null,"أنثى"]
[11,3,"أحمد عتيق","أحمد","عتيق","عمر","يسرب","المشهد","بدلها","الأول","الثالث1",null,"2010-01-05",5,1,2010,905374576476,"ذكر"]
[22,4,"تسنيم فليس","تسنيم","فليس","أحمد","هالة","الكلاسة","بدلها","الأول","الثالث1",null,"2010-01-20",20,1,2010,949211548,"أنثى"]
[138,21,"منى خاروف","منى","خاروف","لؤي","غفران",null,"بدلها","الثالث","الرابع",null,"2010-01-20",20,1,2010,968095246,"أنثى"]
["ج",23,"يوسف عز الدين عفش","يوسف عز الدين","عفش","أحمد","منى",null,"النهضة",null,"الرابع",null,"2010-01-20","20",1,2010,null,"ذكر"]
[19,4,"بسملة خاروف","بسملة","خاروف","أحمد","مها","الكلاسة","بدلها","الثالث","الخامس",null,"2010-01-25",25,1,2010,968934039,"أنثى"]
[160,7,"روان ستر","روان","ستر","أحمد","ناهد",null,"بدلها",null,"الثاني2",null,"2010-01-25",25,1,2010,947045195,"أنثى"]
[null,2,"أحمد الجدعان","أحمد","الجدعان","جمال","بشرى",null,"النهضة",null,"الرابع",null,"2010-01-26",26,6,2010,966449362,"ذكر","يتيم"]
[26,7,"جنى عقيل","جنى","عقيل","عبد الله","منى","المشهد",null,"الرابع","الرابع","حلب","2010-01-30",30,1,2010,null,"أنثى"]
[97,22,"هلال حدادة","هلال","حدادة","زكريا","بيان","الأنصاري","بدلها","الأول","الثالث1",null,"2010-03-01",1,3,2010,966802961,"ذكر"]
[null,5,"رضوان حردان","رضوان","حردان","أحمد","سماح",null,"بدلها",null,"الثاني1","حلب","2010-03-01","1",3,2010,null,"ذكر"]
[null,3,"إيمان الحمود","إيمان","الحمود","خليفة","حنان",null,"النور",null,"الثاني1",null,"2010-04-01",1,4,2010,null,"أنثى"]
[null,8,"رهف الحمود","رهف","الحمود","خليفة","حنان",null,"النور",null,"الأول",null,"2010-04-25",25,4,2010,null,"أنثى"]
["ج",5,"جمعة سويدان","جمعة","سويدان","محمد","إلهام",null,null,null,"الثاني2","الحس","2010-05-02","2",5,2010,954470910,"ذكر"]
[49,null,"عبد القادر عساني","عبد القادر","عساني","نايف","ديانا","الفردوس",null,"الأول",null,"حلب","2010-05-08",8,5,2010,null,"ذكر"]
[169,null,"محمود شريمو","محمود","شريمو",null,null,null,null,"الأول",null,null,"2010-05-08",8,5,2010,null,"ذكر"]
[196,3,"أحمد شوبك","أحمد","شوبك",null,null,null,null,"الأول","الأول",null,"2010-05-10",10,5,2010,null,"ذكر"]
[null,4,"حسن عموري","حسن","عموري","أحمد","أسماء",null,null,null,"الأول",null,"2010-06-10","10",6,2010,null,"ذكر"]
[166,12,"عبد اللطيف أبو شريف","عبد اللطيف","أبو شريف",null,null,null,null,"الأول","الثاني2",null,"2010-06-16",16,6,2010,null,"ذكر"]
[3,1,"إسماعيل عتيق","إسماعيل","عتيق","عمر","يسرب","المشهد","بدلها","الأول","الثالث1",null,"2011-01-01",1,1,2011,905374576476,"ذكر"]
[25,6,"تميم حجازي","تميم","حجازي","مصطفى","خنساء",null,"بدلها","الثاني","الرابع",null,"2011-01-01",1,1,2011,947670211,"ذكر"]
[31,null,"حلا مزكتلي","حلا","مزكتلي","مصطفى","ياسمين","المشهد",null,"الأول",null,"حلب","2011-01-01",1,1,2011,null,"أنثى"]
[36,9,"خديجة مراد","خديجة","مراد","رشيد","كوكب","المشهد","بدلها","الأول","الثالث1",null,"2011-01-01",1,1,2011,962035197,"أنثى"]
[39,11,"رغد خاروف","رغد","خاروف","مروان","سلوى","الكلاسة","بدلها","الأول","الثالث1",null,"2011-01-01",1,1,2011,954279827,"أنثى"]
[67,14,"محمد خطاب","محمد","خطاب","حسين","سامية",null,"بدلها",null,"الثاني1",null,"2011-01-01",1,1,2011,null,"ذكر"]
[94,21,"نوار حلاق","نوار","حلاق","حسين","شذى","الفردوس","بدلها","الأول","الثالث2",null,"2011-01-01",1,1,2011,null,"ذكر"]
["ج",1,"أحمد المحمد","أحمد","المحمد","محمود","هدى",null,"النايف",null,"الأول",null,"2011-01-01","1",1,2011,null,"ذكر"]
["ج",27,"نور حمالو","نور","حمالو","رمضان","عائشة حمادة",null,"النايف","الأول","الأول",null,"2011-01-01","1",1,2011,null,"أنثى"]
["ج",13,"شهناز الخلف","شهناز","الخلف","صلاح الدين","عفراء",null,null,null,"الثالث1","حمص","2011-01-01","1",1,2011,null,"أنثى"]
[null,7,"رهف الأحمد","رهف","الأحمد","جاسم","جازية",null,"النور",null,"الأول",null,"2011-01-01",1,1,2011,null,"أنثى"]
[27,6,"حسان ريحاوي","حسان","ريحاوي","محمد","نورا","الكلاسة",null,"الأول","الثالث1","حلب","2011-01-03",3,1,2011,null,"ذكر"]
[28,7,"حسن ملحم","حسن","ملحم","حسين","أميرة","الكلاسة","بدلها","الأول","الثالث1",null,"2011-01-04",4,1,2011,959004693,"ذكر"]
[68,21,"محمد ملحم","محمد","ملحم","حسن","علياء","الكلاسة","بدلها","الأول","الثالث1",null,"2011-01-04",4,1,2011,940270996,"ذكر"]
[null,15,"عائشة الجدعان","عائشة","الجدعان","جمال","بشرى",null,"بدلها",null,"الثالث1",null,"2011-01-06",6,1,2011,966443962,"أنثى","يتيمة"]
[99,22,"ورد عقاد","ورد","عقاد","مازن","أمل","الفردوس","بدلها","الأول","الثالث2",null,"2011-01-10",10,1,2011,955561771,"ذكر"]
[192,9,"عبد الله العبسي","عبد الله","العبسي","مصطفى","فاطمة",null,"بدلها","الأول","الثاني1",null,"2011-01-10",10,1,2011,null,"ذكر"]
[51,12,"عبدالله مشاعل","عبد الله","مشاعل","أحمد","نورا",null,"بدلها","الثالث","الثالث2",null,"2011-01-11",11,1,2011,954245170,"ذكر"]
[188,null,"ريان بابللي","ريان","بابللي",null,null,null,null,"الأول",null,null,"2011-01-23",23,1,2011,null,"أنثى"]
[100,23,"وفاء قزموز","وفاء","قزموز","محمد منير","ثريا","بستان القصر","بدلها","الأول","الثالث1",null,"2011-02-17",17,2,2011,942290839,"أنثى"]
[191,2,"إبرهيم علي خميس","إبرهيم","علي خميس","صبحي","إيمان",null,"بدلها","الأول","الثاني1",null,"2011-03-01",1,3,2011,943922183,"ذكر","الأب شهيد"]
[46,11,"شيماء خاروف","شيماء","خاروف","لؤي","غفران",null,"بدلها",null,"الثالث2",null,"2011-04-07",7,4,2011,963968095,"أنثى"]
[null,26,"مصعب الحمود","مصعب","الحمود","خليفة","حنان",null,"النور",null,"الأول",null,"2011-04-25",25,4,2011,null,"ذكر"]
[157,4,"آسيا بكاري","آسيا","بكاري","أحمد","غزلان",null,"بدلها","الأول","الثاني2",null,"2011-05-01",1,5,2011,949024931,"أنثى"]
[190,null,"حسن العموري","حسن","العموري",null,null,null,null,"الأول",null,null,"2011-06-10",10,6,2011,null,"ذكر"]
[null,9,"زيد كراسي","زيد","كراسي","أحمد","ميادة",null,null,null,"الثاني2",null,"2011-07-12","2",7,2011,null,"ذكر"]
[56,17,"عمار حشيشو","عمار","حشيشو","أنس","أسماء","الكلاسة","بدلها",null,"الثالث1",null,"2011-07-17",17,7,2011,968095810,"ذكر"]
[162,13,"ساجدة بركات","ساجدة","بركات","محمد","راضية",null,"بدلها",null,"الأول","حلب","2012-01-01",1,1,2012,null,"أنثى","راسب"]
[165,8,"عبد الحميد ملحم","عبد الحميد","ملحم","حسن","علياء",null,"بدلها",null,"الثاني1",null,"2012-01-01",1,1,2012,940270996,"ذكر"]
[168,17,"مصطفى خطاب","مصطفى","خطاب",null,null,null,null,"الأول","الثاني2",null,"2012-01-01",1,1,2012,null,"ذكر"]
[171,19,"نور حدادة","نور","حدادة","محمد","روعة",null,"بدلها","الأول","الثاني2",null,"2012-01-01",1,1,2012,null,"أنثى"]
[181,6,"زيد حدادة","زيد","حدادة","زكريا","بيان",null,"بدلها","الأول","الثاني1",null,"2012-01-01",1,1,2012,966802961,"ذكر"]
[186,13,"غيث خاروف","غيث","خاروف","ماهر","بشرى",null,"بدلها",null,"الثاني2",null,"2012-01-01",1,1,2012,963962282,"ذكر"]
[194,null,"عبد الله شريمو","عبد الله","شريمو",null,null,null,null,"الأول",null,null,"2012-01-01",1,1,2012,null,"ذكر"]
[null,11,"ريان ميمة","ريان","ميمة","علاء","زينب",null,null,null,"الأول",null,"2012-01-01","1",1,2012,null,"ذكر"]
[null,3,"أنس عرعور","أنس","عرعور","محمد","أمينة",null,null,null,"الثاني2",null,"2012-01-01","1",1,2010,null,"ذكر"]
[158,18,"نعيمة أبو شريف","نعيمة","أبو شريف",null,null,null,null,"الأول","الثاني2",null,"2012-01-05",5,1,2012,null,"أنثى"]
[183,4,"أحمد بساطة","أحمد","بساطة","محمد","رهف",null,"بدلها","الأول","الثاني1",null,"2012-01-05",5,1,2012,943962712,"ذكر"]
[184,7,"سميرة حدادة","سميرة","حدادة","محمود","روعة",null,"بدلها","الأول","الثاني1",null,"2012-01-14",14,1,2012,945577297,"أنثى"]
[180,18,"محمد ميمة","محمد","ميمة","أحمد","سوسن",null,null,"الأول","الثاني1",null,"2012-01-15","15",1,2012,null,"ذكر"]
[null,14,"سلوى الطالب","سلوى","الطالب","طلال","فهيمة",null,null,null,"الأول",null,"2012-01-15","15",1,2012,null,"أنثى"]
[187,11,"عمر مراد","عمر","مراد","أحمد","إبتسام",null,"بدلها","الأول","الثاني1",null,"2012-01-18",18,1,2012,959707649,"ذكر"]
[193,10,"عبيدة عتيق","عبيدة","عتيق","عمر","يسرب",null,"بدلها","الأول","الثاني1",null,"2012-01-20",20,1,2012,95374576476,"ذكر"]
[7,1,"إيمان شامي","إيمان","شامي","أحمد","فضيلة","الكلاسة","بدلها","الأول","الثاني2",null,"2012-01-25",25,1,2012,945656297,"أنثى"]
[96,20,"هديل حردان","هديل","حردان","غسان","هيفاء","الفردوس","بدلها","الأول","الثاني2",null,"2012-01-26",26,1,2012,960968267,"أنثى"]
[182,15,"محمد عمار حجازي","محمد عمار","حجازي","مصطفى","شذى",null,null,"الأول","الثاني1",null,"2012-01-30",30,1,2012,null,"ذكر"]
[null,22,"محمد ملحم","محمد","ملحم","أحمد","فاطمة",null,"بدلها",null,"الأول",null,"2012-02-02",2,2,2012,963940809,"ذكر","الأب شهيد/راسب"]
[null,2,"أحمد الجدعان","أحمد","الجدعان","خالد","جميلة",null,"النهضة",null,"الثاني2",null,"2012-02-15",15,2,2012,966443962,"ذكر"]
[null,2,"أحمد خطاب","أحمد","خطاب","حسين","سامية",null,null,null,"الأول",null,"2012-04-01","1",4,2012,null,"ذكر"]
[164,11,"عبد الكريم بكاري","عبد الكريم","بكاري","أحمد","غزلان",null,"بدلها",null,"الثاني2",null,"2012-06-05",5,6,2012,949024931,"ذكر"]
[167,19,"عبد الهادي دقاق","عبد الهادي","دقاق","فادي","فاطمة",null,null,"الأول","الأول",null,"2012-06-18",18,6,2012,null,"ذكر"]
[null,20,"عمر فاروق غراب","عمر فاروق","غراب","أحمد","فاطمة",null,null,null,"الأول",null,"2012-07-23","23",7,2012,null,"ذكر"]
["ج",null,"محمد السعيد","محمد","السعيد","سعيد","دلال",null,null,null,null,null,"2012-08-15","15",8,2012,null,"ذكر"]
[null,25,"مروة السعيد","مروة","السعيد","سعيد","دلال",null,null,null,"الأول",null,"2012-08-15","15",8,2012,null,"أنثى"]
[161,8,"ريم حشيشو","ريم","حشيشو","أنس","أسماء",null,"بدلها",null,"الثاني2",null,"2012-09-09",9,9,2012,968095810,"أنثى"]
[null,10,"ريان معراتي","ريان ","معراتي","ماجد","خديجة","خان شيخون",null,null,"الأول",null,"2012-10-12",12,10,2012,null,"ذكر"]
[null,12,"ريماس بكور","ريماس","بكور","أحمد","حنان",null,"بدلها",null,"الأول","حلب","2012-11-03",3,11,2012,963942232,"أنثى"]
["ج",16,"شهد الحسن","شهد","الحسن","حمود","فوزة الحسن",null,"النور","الأول","الأول","حمص","2013-01-01",1,1,2013,null,"أنثى"]
[185,17,"محمد مرقو","محمد","مرقو","عبد الجليل","رامية",null,"بدلها","الأول","الثاني1",null,"2013-01-20",20,1,2013,945573414,"ذكر"]
[null,18,"عبد الله خطيب","عبد الله","خطيب","محمد","مبينة",null,null,null,"الأول",null,"2013-01-20","20",1,2013,null,"ذكر"]
[179,13,"لجين السيد","لجين","السيد","خالد","نادية",null,"بدلها",null,"الثاني1",null,"2013-02-01",1,2,2013,944084414,"أنثى"]
[null,21,"غيث حردان","غيث","حردان","غسان","هيفاء",null,"بدلها",null,"الأول",null,"2013-03-10",10,3,2013,960968267,"ذكر"]
["ج",null,"هدى شامي","هدى","شامي","أحمد","فضيلة",null,"بدلها",null,null,null,"2013-06-15",15,6,2013,945656297,"أنثى"]
[null,15,"شهد الأحمد","شهد","الأحمد","جاسم","جازية",null,"النور",null,"الأول",null,"2013-10-10",10,10,2013,null,"أنثى"]
[null,9,"روهى خياط نقو","روهى","خياط نقو","أسامة","ميرفت",null,null,null,"الأول",null,"2014-01-01","1",1,2014,null,"أنثى"]
[null,23,"محمد ملحم","محمد","ملحم","عماد","بتول",null,null,null,"الأول",null,"2014-01-01","1",1,2014,null,"ذكر"]
["ج",null,"فاطمة الجدعان","فاطمة","الجدعان","خالد","جميلة",null,"النهضة",null,null,null,"2014-01-15",15,1,2014,966443962,"أنثى"]
[178,null,"خديجة السفان","خديجة","السفان","بشير","مكية",null,"الإيمان","الرابع",null,"اللطامنة","اللطامنة 2006",null,null,2006,null,"أنثى"]
[175,null,"كسار الديب","كسار","الديب","أحمد","منتهى",null,"الإيمان","الثاني",null,"اللطامنة","اللطامنة 2007",null,null,2007,null,"ذكر"]
[176,null,"سيفو الديب","سيفو","الديب","أحمد","منتهى",null,"الإيمان","الثاني",null,"اللطامنة","اللطامنة 2008",null,null,2008,null,"ذكر"]
[173,null,"عبادة الديب","عبادة","الديب","أحمد","منتهى",null,"الإيمان","الأول",null,"اللطامنة","اللطامنة 2011",null,null,2011,null,"ذكر"]
[174,null,"حذيفة السفان","حذيفة","السفان","مهدي","فاطمة",null,"الإيمان","الأول",null,"اللطامنة","اللطامنة 2011",null,null,2011,null,"أنثى"]
[219,null,"أحمد بركات","أحمد","بركات",null,null,null,null,"التاسع",null,null,"ب1998",null,null,1998,null,"ذكر"]
["ج",null,"طه بصوص","طه","بصوص","ناصر","عائدة",null,"النهضة","السابع",null,null,"ب2005",null,null,2005,null,"ذكر"]
[null,null,"محمد عواد","محمد","عواد","خالد","أمينة",null,"النهضة","السادس",null,null,"ب2005",null,null,2005,null,"ذكر"]
[null,17,"عبد الرزاق الباب","عبد الرزاق","الباب","يوسف","لمى",null,"بدلها",null,"الأول",null,"ب2007",null,null,2007,null,"ذكر","إعاقة ذهنية"]
["ج",null,"إيمان فرج","إيمان","فرج","نضال","إكرام",null,"خان شيخون",null,null,"كفر زيتا","ب2009",null,null,2009,null,"ذكر"]
[50,null,"عبد الله صباغ","عبد الله","صباغ","إسماعيل","لمى","الكلاسة",null,"السابع",null,"حلب","حلب 2003",null,null,2003,null,"ذكر"]
[61,null,"قصي خاروف","قصي","خاروف","ماهر","بشرى","المغاير",null,"السابع",null,"حلب","حلب 2003",null,null,2003,null,"ذكر"]
[70,null,"محمد قجة","محمد","قجة","خالد","عيشة","الكلاسة",null,"الثامن",null,"حلب","حلب 2003",null,null,2003,null,"ذكر"]
[98,null,"هلال حدادة","هلال","حدادة","محمد","روعة","الأنصاري",null,"التاسع",null,"حلب","حلب 2003",null,null,2003,null,"ذكر"]
[32,null,"حمزة حدادة","حمزة","حدادة","أحمد","منى","الأنصاري",null,"الثامن",null,"حلب","حلب 2004",null,null,2004,null,"ذكر"]
[55,null,"عبد الهادي حدادة","عبد الهادي","حدادة","محمد","روعة","الأنصاري",null,"السادس",null,"حلب","حلب 2005",null,null,2005,null,"ذكر"]
[63,null,"محمد زيدان","محمد","زيدان","أحمد","درية",null,null,"السادس",null,"حلب","حلب 2005",null,null,2005,null,"ذكر"]
[89,null,"مصطفى الأحمد","مصطفى","الأحمد","خالد","سامية","السكري",null,"السابع",null,"حلب","حلب 2005",null,null,2005,null,"ذكر"]
[92,null,"معاذ بابللي","معاذ","بابللي","محي الدين","نوره","المشهد",null,"الخامس",null,"حلب","حلب 2005",null,null,2005,null,"ذكر"]
[95,null,"نور باروتجي","نور","باروتجي","إبراهيم","غفران","الكلاسة",null,"الرابع",null,"حلب","حلب 2005",null,null,2005,null,"أنثى"]
[86,18,"محمود جسري","محمود","جسري","محمد",null,"المشهد",null,"الرابع","السادس","حلب","حلب 2006",null,null,2006,null,"ذكر"]
[24,6,"تسنيم مدلل","تسنيم","مدلل","حافظ","رانيا","بستان القصر",null,"الرابع","السادس","حلب","حلب 2007",null,null,2007,null,"أنثى"]
[42,9,"ريان مدلل","ريان","مدلل","حافظ","رانيا","بستان القصر",null,"الرابع","السادس","حلب","حلب 2007",null,null,2007,null,"أنثى"]
[60,null,"فاطمة شوا","فاطمة","شوا","عبد الكريم","عبير","الكلاسة",null,"الرابع",null,"حلب","حلب 2007",null,null,2007,null,"أنثى"]
[71,null,"محمد مدلل","محمد","مدلل","زكريا","إبتسام","بستان القصر",null,"الرابع",null,"حلب","حلب 2007",null,null,2007,null,"ذكر"]
[16,null,"بتول نجار","بتول","نجار","عبد القادر","صفاء","الكلاسة",null,"الرابع",null,"حلب","حلب 2008",null,null,2008,null,"أنثى"]
[81,null,"محمد فاضل شقير","محمد فاضل","شقير","فارس","بتول",null,null,"الأول",null,"حلب","حلب 2010",null,null,2010,null,"ذكر"]
[135,null,"قمر مكتبي","قمر","مكتبي","محمد",null,null,null,"الثالث",null,null,"حلب2006",null,null,2006,null,"أنثى"]
[58,null,"عمر عجوزي","عمر","عجوزي","عيسى","ميادة","الكلاسة",null,"الأول",null,"حلب","حلب2010",null,null,2010,null,"ذكر"]
[83,null,"محمد ياسر بساطة","محمد ياسر","بساطة",null,"منى","السكري",null,"الأول",null,"حلب","حلب2010",null,null,2010,null,"ذكر"]
[128,17,"محمد نور الحسن","محمد نور","الحسن","خالد",null,null,null,"الخامس","السادس",null,null,"","","",null,"ذكر"]
[136,null,"عبد الكريم أبو شريف","عبد الكريم","أبو شريف",null,null,null,null,"الثالث",null,null,null,"","","",null,"ذكر"]
[137,null,"مصطفى عتيق","مصطفى","عتيق",null,null,null,null,"الثالث",null,null,null,"","","",null,"ذكر"]
[147,15,"محمد أبو شريف","محمد","أبو شريف",null,null,null,null,"الثاني","الثالث2",null,null,"","","",null,"ذكر"]
[199,null,"منذر سندة","منذر","سندة",null,null,null,null,"السادس",null,null,null,"","","",null,"ذكر"]
[202,null,"كمال بكور","كمال","بكور",null,null,null,null,"السادس",null,null,null,"","","",null,"ذكر"]
[204,null,"سدرة المنتهى ميمة","سدرة المنتهى","ميمة",null,null,null,null,"السادس",null,null,null,"","","",null,"أنثى"]
[207,null,"شادية بزماوي","شادية","بزماوي",null,null,null,null,"السابع",null,null,null,"","","",null,"أنثى"]
[213,null,"مصطفى بطش","مصطفى","بطش",null,null,null,null,"التاسع",null,null,null,"","","",null,"ذكر"]
[214,null,"محمد خشان","محمد","خشان",null,null,null,null,"التاسع",null,null,null,"","","",null,"ذكر"]
[217,null,"ياسر بطش","ياسر","بطش",null,null,null,null,"التاسع",null,null,null,"","","",null,"ذكر"]
[218,null,"عبد القادر قمقم","عبد القادر","قمقم",null,null,null,null,"التاسع",null,null,null,"","","",null,"ذكر"]
[224,null,"شهد جسري","شهد","جسري",null,null,null,null,"التاسع",null,null,null,"","","",null,"أنثى"]
[226,null,"مرام خاروف","مرام","خاروف",null,null,null,null,"التاسع",null,null,null,"","","",null,"أنثى"]
[227,null,"خديجة مدلل","خديجة","مدلل",null,null,null,null,"التاسع",null,null,null,"","","",null,"أنثى"]
[228,null,"هاجر حج ياسين","هاجر","حج ياسين",null,null,null,null,"التاسع",null,null,null,"","","",null,"أنثى"]
[229,null,"نور الهدى ميمة","نور الهدى","ميمة",null,null,null,null,"التاسع",null,null,null,"","","",null,"أنثى"]
[230,null,"لينا سقلائق","لينا","سقلائق",null,null,null,null,"التاسع",null,null,null,"","","",null,"أنثى"]
[233,null,"فاطمة زيدان","فاطمة","زيدان",null,null,null,null,"التاسع",null,null,null,"","","",null,"أنثى"]
["ج",6,"جواهر الأحمد","جواهر","الأحمد","جاسم",null,null,null,null,"الثالث2",null,null,null,null,null,null,"أنثى"]
["ج",19,"مصطفى مصطفى","مصطفى","مصطفى","عبدالحميد","ناهد",null,null,null,"الثاني1",null,null,null,null,null,null,"ذكر"]
["ج",17,"مهند الخلف","مهند","الخلف",null,null,null,null,null,"الخامس",null,null,null,null,null,null,"ذكر"]
["ج",12,"عبد اللطيف غراب","عبد اللطيف","غراب",null,null,null,null,null,"السادس",null,null,null,null,null,null,"ذكر"]
["ج",14,"غالية كراسي","غالية","كراسي",null,null,null,null,null,"السادس",null,null,null,null,null,null,"أنثى"]
["ج",null,"بدر الحمود","بدر","الحمود",null,null,null,null,null,null,null,null,null,null,null,null,"ذكر"]
["ج",null,"خالد المحمد","خالد","المحمد",null,null,null,null,null,null,null,null,null,null,null,null,"ذكر"]
[null,6,"خالد السعيد","خالد","السعيد","سعيد","دلال",null,"النايف","الأول","الأول",null,null,null,null,null,null,"أنثى"]
[null,24,"محمود قزموز","محمود","قزموز",null,null,null,null,null,"الأول",null,null,null,null,null,null,"أنثى"]
[null,8,"خنسة الطالب","خنسة","الطالب",null,null,null,null,null,"الثالث2",null,null,null,null,null,null,"أنثى"]
[null,6,"سارة كراسي","سارة","كراسي",null,null,null,null,null,"الثامن",null,null,null,null,null,null,"أنثى"]
[null,10,"عبد الحي أبو بكر","عبد الحي","أبو بكر",null,null,null,null,null,"الثاني2",null,null,null,null,null,null,"ذكر"]
[null,1,"البراء عرعور","البراء","عرعور",null,null,null,null,null,"السابع",null,null,null,null,null,null,"ذكر"]
[null,5,"عمر سعد الدين","عمر","سعد الدين",null,null,null,null,null,"السابع",null,null,null,null,null,null,"ذكر"]
[null,6,"محمد كنساوي","محمد","كنساوي",null,null,null,null,null,"السابع",null,null,null,null,null,null,"ذكر"]
[null,19,"محمود سويدان","محمود","سويدان",null,null,null,null,null,"السادس",null,null,null,null,null,null,"ذكر"]
[null,null,"ولاء عفش","ولاء","عفش","أحمد","منى",null,"النهضة","السادس",null,null,null,null,null,null,null,"أنثى"]

{"sheet":"تفقد","index":2,"n_rows":33,"n_cols":33,"rows_kept":33,"cut":false,"hidden":false,"merged":[[1,1,2,1]]}
["الخامس","مدرسة الجيل المسلم",null,null,null,null,null,null,null,null,null,"تفقد الطلاب عن شهر:............................",null,null,null,null,null,null,"الصف:",{"$f":"VLOOKUP($A$1,أساسيات!A2:D12,2,0)","v":"الخامس"},null,null,null,"الشعبة:",{"$f":"VLOOKUP($A$1,أساسيات!A2:D12,3,0)","v":"الأولى"},null,"المشرف:",null,{"$f":"VLOOKUP($A$1,أساسيات!A2:D12,4,0)","v":"خ"}]
[null,"الاســـــــم"]
["الرقم",null,1,2,3,4,5,6,7,8,9,10,11,12,13,14,15,16,17,18,19,20,21,22,23,24,25,26,27,28,29,30,31]
[{"$f":"IFERROR(INDEX('أسماء الطلاب'!$B:$B,MATCH(B4,'أسماء الطلاب'!$C:$C,0)),\"\")","v":12},{"$f":"IFERROR(INDEX('أسماء الطلاب'!$C:$C,SMALL(IF('أسماء الطلاب'!$K:$K=$A$1,ROW($A$2:$A$2262)-ROW($A$2)+1),ROWS($B$4:B4))),\"\")","v":"عبد الله مدلل"}]
[{"$f":"IFERROR(INDEX('أسماء الطلاب'!$B:$B,MATCH(B5,'أسماء الطلاب'!$C:$C,0)),\"\")","v":15},{"$f":"IFERROR(INDEX('أسماء الطلاب'!$C:$C,SMALL(IF('أسماء الطلاب'!$K:$K=$A$1,ROW($A$2:$A$2262)-ROW($A$2)+1),ROWS($B$4:B5))),\"\")","v":"محمد نور حميدي"}]
[{"$f":"IFERROR(INDEX('أسماء الطلاب'!$B:$B,MATCH(B6,'أسماء الطلاب'!$C:$C,0)),\"\")","v":11},{"$f":"IFERROR(INDEX('أسماء الطلاب'!$C:$C,SMALL(IF('أسماء الطلاب'!$K:$K=$A$1,ROW($A$2:$A$2262)-ROW($A$2)+1),ROWS($B$4:B6))),\"\")","v":"عبد الله المصري"}]
[{"$f":"IFERROR(INDEX('أسماء الطلاب'!$B:$B,MATCH(B7,'أسماء الطلاب'!$C:$C,0)),\"\")","v":18},{"$f":"IFERROR(INDEX('أسماء الطلاب'!$C:$C,SMALL(IF('أسماء الطلاب'!$K:$K=$A$1,ROW($A$2:$A$2262)-ROW($A$2)+1),ROWS($B$4:B7))),\"\")","v":"ناديا بركات"}]
[{"$f":"IFERROR(INDEX('أسماء الطلاب'!$B:$B,MATCH(B8,'أسماء الطلاب'!$C:$C,0)),\"\")","v":3},{"$f":"IFERROR(INDEX('أسماء الطلاب'!$C:$C,SMALL(IF('أسماء الطلاب'!$K:$K=$A$1,ROW($A$2:$A$2262)-ROW($A$2)+1),ROWS($B$4:B8))),\"\")","v":"بتول حدادة"}]
[{"$f":"IFERROR(INDEX('أسماء الطلاب'!$B:$B,MATCH(B9,'أسماء الطلاب'!$C:$C,0)),\"\")","v":6},{"$f":"IFERROR(INDEX('أسماء الطلاب'!$C:$C,SMALL(IF('أسماء الطلاب'!$K:$K=$A$1,ROW($A$2:$A$2262)-ROW($A$2)+1),ROWS($B$4:B9))),\"\")","v":"رضوان خياط نقو"}]
[{"$f":"IFERROR(INDEX('أسماء الطلاب'!$B:$B,MATCH(B10,'أسماء الطلاب'!$C:$C,0)),\"\")","v":10},{"$f":"IFERROR(INDEX('أسماء الطلاب'!$C:$C,SMALL(IF('أسماء الطلاب'!$K:$K=$A$1,ROW($A$2:$A$2262)-ROW($A$2)+1),ROWS($B$4:B10))),\"\")","v":"ظلال الإيمان صباغ"}]
[{"$f":"IFERROR(INDEX('أسماء الطلاب'!$B:$B,MATCH(B11,'أسماء الطلاب'!$C:$C,0)),\"\")","v":8},{"$f":"IFERROR(INDEX('أسماء الطلاب'!$C:$C,SMALL(IF('أسماء الطلاب'!$K:$K=$A$1,ROW($A$2:$A$2262)-ROW($A$2)+1),ROWS($B$4:B11))),\"\")","v":"سمى العبسي"}]
[{"$f":"IFERROR(INDEX('أسماء الطلاب'!$B:$B,MATCH(B12,'أسماء الطلاب'!$C:$C,0)),\"\")","v":2},{"$f":"IFERROR(INDEX('أسماء الطلاب'!$C:$C,SMALL(IF('أسماء الطلاب'!$K:$K=$A$1,ROW($A$2:$A$2262)-ROW($A$2)+1),ROWS($B$4:B12))),\"\")","v":"أمل ريحاوي"}]
[{"$f":"IFERROR(INDEX('أسماء الطلاب'!$B:$B,MATCH(B13,'أسماء الطلاب'!$C:$C,0)),\"\")","v":16},{"$f":"IFERROR(INDEX('أسماء الطلاب'!$C:$C,SMALL(IF('أسماء الطلاب'!$K:$K=$A$1,ROW($A$2:$A$2262)-ROW($A$2)+1),ROWS($B$4:B13))),\"\")","v":"محمود بساطة"}]
[{"$f":"IFERROR(INDEX('أسماء الطلاب'!$B:$B,MATCH(B14,'أسماء الطلاب'!$C:$C,0)),\"\")","v":1},{"$f":"IFERROR(INDEX('أسماء الطلاب'!$C:$C,SMALL(IF('أسماء الطلاب'!$K:$K=$A$1,ROW($A$2:$A$2262)-ROW($A$2)+1),ROWS($B$4:B14))),\"\")","v":"إيلاف أول"}]
[{"$f":"IFERROR(INDEX('أسماء الطلاب'!$B:$B,MATCH(B15,'أسماء الطلاب'!$C:$C,0)),\"\")","v":13},{"$f":"IFERROR(INDEX('أسماء الطلاب'!$C:$C,SMALL(IF('أسماء الطلاب'!$K:$K=$A$1,ROW($A$2:$A$2262)-ROW($A$2)+1),ROWS($B$4:B15))),\"\")","v":"محمد أول"}]
[{"$f":"IFERROR(INDEX('أسماء الطلاب'!$B:$B,MATCH(B16,'أسماء الطلاب'!$C:$C,0)),\"\")","v":5},{"$f":"IFERROR(INDEX('أسماء الطلاب'!$C:$C,SMALL(IF('أسماء الطلاب'!$K:$K=$A$1,ROW($A$2:$A$2262)-ROW($A$2)+1),ROWS($B$4:B16))),\"\")","v":"خديجة مراد"}]
[{"$f":"IFERROR(INDEX('أسماء الطلاب'!$B:$B,MATCH(B17,'أسماء الطلاب'!$C:$C,0)),\"\")","v":14},{"$f":"IFERROR(INDEX('أسماء الطلاب'!$C:$C,SMALL(IF('أسماء الطلاب'!$K:$K=$A$1,ROW($A$2:$A$2262)-ROW($A$2)+1),ROWS($B$4:B17))),\"\")","v":"محمد ملحم"}]
[{"$f":"IFERROR(INDEX('أسماء الطلاب'!$B:$B,MATCH(B18,'أسماء الطلاب'!$C:$C,0)),\"\")","v":7},{"$f":"IFERROR(INDEX('أسماء الطلاب'!$C:$C,SMALL(IF('أسماء الطلاب'!$K:$K=$A$1,ROW($A$2:$A$2262)-ROW($A$2)+1),ROWS($B$4:B18))),\"\")","v":"سدرة المنتهى صباغ"}]
[{"$f":"IFERROR(INDEX('أسماء الطلاب'!$B:$B,MATCH(B19,'أسماء الطلاب'!$C:$C,0)),\"\")","v":9},{"$f":"IFERROR(INDEX('أسماء الطلاب'!$C:$C,SMALL(IF('أسماء الطلاب'!$K:$K=$A$1,ROW($A$2:$A$2262)-ROW($A$2)+1),ROWS($B$4:B19))),\"\")","v":"صالح قمقم"}]
[{"$f":"IFERROR(INDEX('أسماء الطلاب'!$B:$B,MATCH(B20,'أسماء الطلاب'!$C:$C,0)),\"\")","v":4},{"$f":"IFERROR(INDEX('أسماء الطلاب'!$C:$C,SMALL(IF('أسماء الطلاب'!$K:$K=$A$1,ROW($A$2:$A$2262)-ROW($A$2)+1),ROWS($B$4:B20))),\"\")","v":"بسملة خاروف"}]
[{"$f":"IFERROR(INDEX('أسماء الطلاب'!$B:$B,MATCH(B21,'أسماء الطلاب'!$C:$C,0)),\"\")","v":17},{"$f":"IFERROR(INDEX('أسماء الطلاب'!$C:$C,SMALL(IF('أسماء الطلاب'!$K:$K=$A$1,ROW($A$2:$A$2262)-ROW($A$2)+1),ROWS($B$4:B21))),\"\")","v":"مهند الخلف"}]
[{"$f":"IFERROR(INDEX('أسماء الطلاب'!$B:$B,MATCH(B22,'أسماء الطلاب'!$C:$C,0)),\"\")","v":""},{"$f":"IFERROR(INDEX('أسماء الطلاب'!$C:$C,SMALL(IF('أسماء الطلاب'!$K:$K=$A$1,ROW($A$2:$A$2262)-ROW($A$2)+1),ROWS($B$4:B22))),\"\")","v":""}]
[{"$f":"IFERROR(INDEX('أسماء الطلاب'!$B:$B,MATCH(B23,'أسماء الطلاب'!$C:$C,0)),\"\")","v":""},{"$f":"IFERROR(INDEX('أسماء الطلاب'!$C:$C,SMALL(IF('أسماء الطلاب'!$K:$K=$A$1,ROW($A$2:$A$2262)-ROW($A$2)+1),ROWS($B$4:B23))),\"\")","v":""}]
[{"$f":"IFERROR(INDEX('أسماء الطلاب'!$B:$B,MATCH(B24,'أسماء الطلاب'!$C:$C,0)),\"\")","v":""},{"$f":"IFERROR(INDEX('أسماء الطلاب'!$C:$C,SMALL(IF('أسماء الطلاب'!$K:$K=$A$1,ROW($A$2:$A$2262)-ROW($A$2)+1),ROWS($B$4:B24))),\"\")","v":""}]
[{"$f":"IFERROR(INDEX('أسماء الطلاب'!$B:$B,MATCH(B25,'أسماء الطلاب'!$C:$C,0)),\"\")","v":""},{"$f":"IFERROR(INDEX('أسماء الطلاب'!$C:$C,SMALL(IF('أسماء الطلاب'!$K:$K=$A$1,ROW($A$2:$A$2262)-ROW($A$2)+1),ROWS($B$4:B25))),\"\")","v":""}]
[{"$f":"IFERROR(INDEX('أسماء الطلاب'!$B:$B,MATCH(B26,'أسماء الطلاب'!$C:$C,0)),\"\")","v":""},{"$f":"IFERROR(INDEX('أسماء الطلاب'!$C:$C,SMALL(IF('أسماء الطلاب'!$K:$K=$A$1,ROW($A$2:$A$2262)-ROW($A$2)+1),ROWS($B$4:B26))),\"\")","v":""}]
[{"$f":"IFERROR(INDEX('أسماء الطلاب'!$B:$B,MATCH(B27,'أسماء الطلاب'!$C:$C,0)),\"\")","v":""},{"$f":"IFERROR(INDEX('أسماء الطلاب'!$C:$C,SMALL(IF('أسماء الطلاب'!$K:$K=$A$1,ROW($A$2:$A$2262)-ROW($A$2)+1),ROWS($B$4:B27))),\"\")","v":""}]
[{"$f":"IFERROR(INDEX('أسماء الطلاب'!$B:$B,MATCH(B28,'أسماء الطلاب'!$C:$C,0)),\"\")","v":""},{"$f":"IFERROR(INDEX('أسماء الطلاب'!$C:$C,SMALL(IF('أسماء الطلاب'!$K:$K=$A$1,ROW($A$2:$A$2262)-ROW($A$2)+1),ROWS($B$4:B28))),\"\")","v":""}]
[{"$f":"IFERROR(INDEX('أسماء الطلاب'!$B:$B,MATCH(B29,'أسماء الطلاب'!$C:$C,0)),\"\")","v":""},{"$f":"IFERROR(INDEX('أسماء الطلاب'!$C:$C,SMALL(IF('أسماء الطلاب'!$K:$K=$A$1,ROW($A$2:$A$2262)-ROW($A$2)+1),ROWS($B$4:B29))),\"\")","v":""}]
[{"$f":"IFERROR(INDEX('أسماء الطلاب'!$B:$B,MATCH(B30,'أسماء الطلاب'!$C:$C,0)),\"\")","v":""},{"$f":"IFERROR(INDEX('أسماء الطلاب'!$C:$C,SMALL(IF('أسماء الطلاب'!$K:$K=$A$1,ROW($A$2:$A$2262)-ROW($A$2)+1),ROWS($B$4:B30))),\"\")","v":""}]
[{"$f":"IFERROR(INDEX('أسماء الطلاب'!$B:$B,MATCH(B31,'أسماء الطلاب'!$C:$C,0)),\"\")","v":""},{"$f":"IFERROR(INDEX('أسماء الطلاب'!$C:$C,SMALL(IF('أسماء الطلاب'!$K:$K=$A$1,ROW($A$2:$A$2262)-ROW($A$2)+1),ROWS($B$4:B31))),\"\")","v":""}]
[{"$f":"IFERROR(INDEX('أسماء الطلاب'!$B:$B,MATCH(B32,'أسماء الطلاب'!$C:$C,0)),\"\")","v":""},{"$f":"IFERROR(INDEX('أسماء الطلاب'!$C:$C,SMALL(IF('أسماء الطلاب'!$K:$K=$A$1,ROW($A$2:$A$2262)-ROW($A$2)+1),ROWS($B$4:B32))),\"\")","v":""}]
[{"$f":"IFERROR(INDEX('أسماء الطلاب'!$B:$B,MATCH(B33,'أسماء الطلاب'!$C:$C,0)),\"\")","v":""},{"$f":"IFERROR(INDEX('أسماء الطلاب'!$C:$C,SMALL(IF('أسماء الطلاب'!$K:$K=$A$1,ROW($A$2:$A$2262)-ROW($A$2)+1),ROWS($B$4:B33))),\"\")","v":""}]

{"sheet":"الإحصائية","index":3,"n_rows":14,"n_cols":12,"rows_kept":14,"cut":false,"hidden":false,"merged":[[13,2,13,8],[1,1,6,1],[1,3,1,5],[1,6,1,8],[1,9,1,11],[8,1,12,1]]}
[null,null,null,null,null,null,"إحصائية الطلاب"]
[null,"الحلقة الأولى","الشعبة","الأولى",null,null,"الثانية",null,null,"المجموع"]
[null,null,"الصف","ذكور","إناث","مج","ذكور","إناث","مج","ذكور","إناث","مج"]
[null,null,"الأول",{"$f":"COUNTIFS('أسماء الطلاب'!K:K,\"الأول\",'أسماء الطلاب'!R:R,\"ذكر\")","v":14},{"$f":"COUNTIFS('أسماء الطلاب'!K:K,\"الأول\",'أسماء الطلاب'!R:R,\"أنثى\")","v":13},{"$f":"D4+E4","v":27},{"$f":"COUNTIFS('أسماء الطلاب'!K:K,\"الأول2\",'أسماء الطلاب'!R:R,\"ذكر\")","v":0},{"$f":"COUNTIFS('أسماء الطلاب'!K:K,\"الأول2\",'أسماء الطلاب'!R:R,\"أنثى\")","v":0},{"$f":"G4+H4","v":0},{"$f":"D4+G4","v":14},{"$f":"E4+H4","v":13},{"$f":"J4+K4","v":27}]
[null,null,"الثاني",{"$f":"COUNTIFS('أسماء الطلاب'!K:K,\"الثاني1\",'أسماء الطلاب'!R:R,\"ذكر\")","v":17},{"$f":"COUNTIFS('أسماء الطلاب'!K:K,\"الثاني1\",'أسماء الطلاب'!R:R,\"أنثى\")","v":3},{"$f":"D5+E5","v":20},{"$f":"COUNTIFS('أسماء الطلاب'!K:K,\"الثاني2\",'أسماء الطلاب'!R:R,\"ذكر\")","v":11},{"$f":"COUNTIFS('أسماء الطلاب'!K:K,\"الثاني2\",'أسماء الطلاب'!R:R,\"أنثى\")","v":10},{"$f":"G5+H5","v":21},{"$f":"D5+G5","v":28},13,{"$f":"J5+K5","v":41}]
[null,null,"الثالث",{"$f":"COUNTIFS('أسماء الطلاب'!K:K,\"الثالث1\",'أسماء الطلاب'!R:R,\"ذكر\")","v":10},{"$f":"COUNTIFS('أسماء الطلاب'!K:K,\"الثالث1\",'أسماء الطلاب'!R:R,\"أنثى\")","v":13},{"$f":"D6+E6","v":23},{"$f":"COUNTIFS('أسماء الطلاب'!K:K,\"الثالث2\",'أسماء الطلاب'!R:R,\"ذكر\")","v":13},{"$f":"COUNTIFS('أسماء الطلاب'!K:K,\"الثالث2\",'أسماء الطلاب'!R:R,\"أنثى\")","v":9},{"$f":"G6+H6","v":22},23,22,45]
[null,null,"الرابع",{"$f":"COUNTIFS('أسماء الطلاب'!K:K,\"الرابع\",'أسماء الطلاب'!R:R,\"ذكر\")","v":16},{"$f":"COUNTIFS('أسماء الطلاب'!K:K,\"الرابع\",'أسماء الطلاب'!R:R,\"أنثى\")","v":7},23,{"$f":"COUNTIFS('أسماء الطلاب'!K:K,\"الرابع2\",'أسماء الطلاب'!R:R,\"أنثى\")","v":0},{"$f":"COUNTIFS('أسماء الطلاب'!N:N,\"الرابع\",'أسماء الطلاب'!T:T,\"أنثى\")","v":0},0,16,7,23]
[]
[null,"الحلقة الثانية","الخامس",{"$f":"COUNTIFS('أسماء الطلاب'!K:K,\"الخامس\",'أسماء الطلاب'!R:R,\"ذكر\")","v":9},{"$f":"COUNTIFS('أسماء الطلاب'!K:K,\"الخامس\",'أسماء الطلاب'!R:R,\"أنثى\")","v":9},{"$f":"D9+E9","v":18},{"$f":"COUNTIFS('أسماء الطلاب'!K:K,\"الخامس2\",'أسماء الطلاب'!R:R,\"ذكر\")","v":0},{"$f":"COUNTIFS('أسماء الطلاب'!N:N,\"الخامس\",'أسماء الطلاب'!T:T,\"أنثى\")","v":0},{"$f":"G9+H9","v":0},9,9,18]
[null,null,"السادس",{"$f":"COUNTIFS('أسماء الطلاب'!K:K,\"السادس\",'أسماء الطلاب'!R:R,\"ذكر\")","v":10},{"$f":"COUNTIFS('أسماء الطلاب'!K:K,\"السادس\",'أسماء الطلاب'!R:R,\"أنثى\")","v":9},19,{"$f":"COUNTIFS('أسماء الطلاب'!N:N,\"السادس\",'أسماء الطلاب'!T:T,\"ذكر\")","v":0},{"$f":"COUNTIFS('أسماء الطلاب'!K:K,\"الخامس2\",'أسماء الطلاب'!R:R,\"أنثى\")","v":0},0,10,9,19]
[null,null,"السابع",{"$f":"COUNTIFS('أسماء الطلاب'!K:K,\"السابع\",'أسماء الطلاب'!R:R,\"ذكر\")","v":8},{"$f":"COUNTIFS('أسماء الطلاب'!K:K,\"السابع\",'أسماء الطلاب'!R:R,\"أنثى\")","v":5},13,{"$f":"COUNTIFS('أسماء الطلاب'!K:K,\"السابع2\",'أسماء الطلاب'!R:R,\"ذكر\")","v":0},{"$f":"COUNTIFS('أسماء الطلاب'!K:K,\"السابع2\",'أسماء الطلاب'!R:R,\"أنثى\")","v":0},0,8,5,13]
[null,null,"الثامن",{"$f":"COUNTIFS('أسماء الطلاب'!K:K,\"الثامن\",'أسماء الطلاب'!R:R,\"ذكر\")","v":0},{"$f":"COUNTIFS('أسماء الطلاب'!K:K,\"الثامن\",'أسماء الطلاب'!R:R,\"أنثى\")","v":7},7,{"$f":"COUNTIFS('أسماء الطلاب'!K:K,\"الثامن2\",'أسماء الطلاب'!R:R,\"ذكر\")","v":0},{"$f":"COUNTIFS('أسماء الطلاب'!N:N,\"الثامن\",'أسماء الطلاب'!T:T,\"أنثى\")","v":0},0,0,7,7]
[null,null,"التاسع",{"$f":"COUNTIFS('أسماء الطلاب'!K:K,\"التاسع\",'أسماء الطلاب'!R:R,\"ذكر\")","v":0},{"$f":"COUNTIFS('أسماء الطلاب'!K:K,\"التاسع\",'أسماء الطلاب'!R:R,\"أنثى\")","v":0},0,{"$f":"COUNTIFS('أسماء الطلاب'!K:K,\"2التاسع\",'أسماء الطلاب'!R:R,\"ذكر\")","v":0},{"$f":"COUNTIFS('أسماء الطلاب'!K:K,\"التاسع\",'أسماء الطلاب'!R:R,\"أنثى\")","v":0},0,0,0,0]
[null,null,"المجموع",null,null,null,null,null,null,{"$f":"SUM(J4:J13)","v":108},{"$f":"SUM(K4:K13)","v":85},193]

{"sheet":"الكادر","index":4,"n_rows":11,"n_cols":10,"rows_kept":11,"cut":false,"hidden":false,"merged":[]}
["الرقم","الاسم","الأب","الأم","الرقم الوطني","عدد أفراد الأسرة","الشهادة","تاريخ المنح","الوظيفة","ملاحظات"]
[1,"عبد الله صباغ","محمد","بدرية",2040001114,6,"دبلوم تربوي",2002,"مدير"]
[2,"عبد الله عقيل","أحمد","ربيعة",2040361647,4,"مساعد مهندس",1984,"أمين السر"]
[3,"عبد المنعم بنان","أحمد","إبتسام",2040177913,3,"إجازة شريعة",2010,"صف رابع"]
[4,"بتول راجح","وليد","صفاء",2120027520,3,"س4شريعة","-","صف ثالث"]
[5,"منى جغل","عبد الرزاق","سهام",2040366856,4,"أهلية تعليم",1991,"صف أول ش1"]
[6,"نسرين جغل","عبد الرزاق","سهام",2040514298,1,"معهد تجاري",2002,"صف أول ش2"]
[7,"حنان جغل","عبد الرزاق","سهام",2040256073,1,"كلية تربية",2007,"صف ثاني ش1"]
[8,"راما نعناعي","أحمد","فاطمة",2010022485,3,"س2تربية","-","صف ثاني ش2"]
[9,"علياء ملحم","عبدالحميد","فاطمة",2040398014,5,"إجازة لغة انكليزية",2010,"لغة انكليزي"]
[10,"محمد ريحاوي","حسن","أمل",2040235973,5,"ابتدائي","-","مستخدم"]

{"sheet":"كادر احتياطي","index":5,"n_rows":21,"n_cols":8,"rows_kept":21,"cut":false,"hidden":false,"merged":[]}
["الرقم","الاسم  والكنية","الأب","الأم","تاريخ الولادة","الشهادة","رقم التواصل","ملاحظات"]
[1,"محمد خليفة","جاسم","فأزية","الرقة1988","س4لغةك",992213090]
[2,"عبد الرحمن فتوح","غازي",null,"حلب1985","س4شريعة",947063789]
[3,"أسامة خياط","رضوان","فضيلة","حلب1967","س5حاسوب",945656726]
[4,"راما نعناعي","أحمد","فاطمة","حلب1991","س2تربية",949896639]
[5,"فاطمة عزيزي","أحمد","حنان","حلب1992","س1شريعة",957526645]
[6,"مها كريمة","علاء ",null,"حلب1987","س1محاسبة",940646778]
[7,"محمد خوجة","أحمد",null,"حلب1991","س2تقني",948385361]
[8,"أبو بكر زهيراتي","احمد",null,"حلب1989","س1شريعة",951465671]
[9,"رهف حدادة",null,null,null,"ثانوية",958219204]
[10,"فاتن حدادة",null,null,null,"ثانوية",969411087]
[11,"محمد عزوز","عبد الناصر","علية","حلب1991","معهد شرعي ولغة عربية",964326791]
[12,"نور إسماعيل","عبد المجيد","أميرة","حلب1992","ٍ",943528979]
[13,"ريمة الأحمد","نضال","أنيسة","ادلب1991","اجازة حقوق",959862012]
[14,"انور عبود","عبدالاله","غازية","ادلب1985","س3آثار",947720883]
[15]
[16]
[17]
[18]
[19]
[20]